bitfinex-derivatives/quotes_BTCF0:USTF0_20250803
["timestamp","ask_amount","ask_price","bid_price","bid_amount"]
[1754234894188,0.70665714,113920.0,113910.0,3.2424478]
[1754234899787,0.70665714,113920.0,113910.0,3.6032478]
[1754234907395,0.52805714,113920.0,113910.0,3.6032478]
[1754234920906,0.56611714,113920.0,113910.0,3.6032478]
[1754234921101,0.61924714,113920.0,113910.0,3.6032478]
[1754234923206,0.64237714,113920.0,113910.0,3.6032478]
[1754234924113,0.64237714,113920.0,113910.0,3.8669478]
[1754234924811,0.70218714,113920.0,113910.0,3.8669478]
[1754234943627,0.70218714,113920.0,113910.0,2.6428814]
[1754234943825,0.70218714,113920.0,113910.0,3.8669478]
[1754234946227,0.70218714,113920.0,113910.0,2.9873146]
[1754234946426,0.70218714,113920.0,113910.0,3.2546746]
[1754234946628,0.70218714,113920.0,113910.0,3.8667078]
[1754234947635,0.70418714,113920.0,113910.0,3.8667078]
[1754234949632,0.70518714,113920.0,113910.0,3.8667078]
[1754234954331,0.70518714,113920.0,113910.0,2.6523078]
[1754234961038,0.70418714,113920.0,113910.0,2.6523078]
[1754234962231,0.70518714,113920.0,113910.0,2.6523078]
[1754234965345,0.70418714,113920.0,113910.0,2.6523078]
[1754234966233,0.53005714,113920.0,113910.0,2.6523078]
[1754234966438,0.53105714,113920.0,113910.0,2.6523078]
[1754234966645,0.64397714,113920.0,113910.0,2.6523078]
[1754234966845,0.70465714,113920.0,113910.0,2.6523078]
[1754234969546,0.53105714,113920.0,113910.0,2.6523078]
[1754234973752,0.53105714,113920.0,113910.0,3.8666678]
[1754234974551,0.64397714,113920.0,113910.0,3.8666678]
[1754234980256,0.66651714,113920.0,113910.0,3.8666678]
[1754234982956,0.70203714,113920.0,113910.0,3.8666678]
[1754234987759,0.70203714,113920.0,113910.0,3.1450678]
[1754234988060,0.70203714,113920.0,113910.0,3.8666678]
[1754234993066,0.70103714,113920.0,113910.0,3.8666678]
[1754234993269,0.69903714,113920.0,113910.0,3.8666678]
[1754235003774,0.69903714,113920.0,113910.0,3.1450678]
[1754235003980,0.69903714,113920.0,113910.0,3.8666678]
[1754235009081,0.69903714,113920.0,113910.0,3.8676678]
[1754235010379,0.69903714,113920.0,113910.0,3.8666678]
[1754235010681,0.52805714,113920.0,113910.0,3.8666678]
[1754235015885,0.69554714,113920.0,113910.0,3.8666678]
[1754235017285,0.69554714,113920.0,113910.0,3.8676678]
[1754235021186,0.69554714,113920.0,113910.0,3.8666678]
[1754235022382,0.69554714,113920.0,113910.0,2.6426014]
[1754235022684,0.69554714,113920.0,113910.0,3.8666678]
[1754235027594,0.60560714,113920.0,113910.0,3.8666678]
[1754235027994,0.57179714,113920.0,113910.0,3.8666678]
[1754235032788,0.60588714,113920.0,113910.0,3.8666678]
[1754235032985,0.66173714,113920.0,113910.0,3.8666678]
[1754235039104,0.69554714,113920.0,113910.0,3.8666678]
[1754235044396,0.52805714,113920.0,113910.0,3.8666678]
[1754235044799,0.16895,113940.0,113930.0,0.3072081]
[1754235045000,0.07972,113940.0,113930.0,2.7835745]
[1754235045204,0.0222,113940.0,113930.0,2.7835745]
[1754235045402,0.05405,113940.0,113930.0,2.7835745]
[1754235045600,0.03185,113940.0,113930.0,2.7835745]
[1754235046001,0.03185,113940.0,113930.0,2.5198745]
[1754235046699,0.03385,113940.0,113930.0,2.5198745]
[1754235047607,0.03485,113940.0,113930.0,2.5198745]
[1754235052701,0.03185,113940.0,113930.0,2.5218745]
[1754235059410,0.03185,113940.0,113930.0,1.2978081]
[1754235059615,0.03185,113940.0,113930.0,2.5218745]
[1754235060208,0.03185,113940.0,113930.0,2.7855745]
[1754235069928,0.12108,113940.0,113930.0,2.7855745]
[1754235071218,0.03185,113940.0,113930.0,2.7855745]
[1754235074626,0.03185,113940.0,113930.0,2.4746876]
[1754235074833,0.20072,113940.0,113930.0,1.8626544]
[1754235075034,0.20072,113940.0,113930.0,2.1295744]
[1754235075733,0.20072,113940.0,113930.0,1.8626544]
[1754235075934,0.20072,113940.0,113930.0,2.1285744]
[1754235076136,0.20072,113940.0,113930.0,2.1295744]
[1754235076729,0.20072,113940.0,113930.0,2.1285744]
[1754235076934,0.20172,113940.0,113930.0,2.1275744]
[1754235077235,0.3772559,113940.0,113930.0,1.8606544]
[1754235077437,0.20172,113940.0,113930.0,1.8606544]
[1754235077628,0.20172,113940.0,113930.0,2.1275744]
[1754235082544,0.20172,113940.0,113930.0,3.3416544]
[1754235090539,0.20172,113940.0,113930.0,2.7296212]
[1754235090740,0.20172,113940.0,113930.0,3.3416544]
[1754235092751,0.20172,113940.0,113930.0,2.7296212]
[1754235093051,0.20172,113940.0,113930.0,3.3416544]
[1754235114363,0.9919491,113940.0,113930.0,2.9869645]
[1754235114666,0.9919491,113940.0,113930.0,2.10558]
[1754235114868,0.9919491,113940.0,113930.0,2.2811313]
[1754235118664,0.9919491,113940.0,113930.0,2.0141313]
[1754235118874,0.9919491,113940.0,113930.0,2.2811313]
[1754235119269,0.9919491,113940.0,113930.0,2.0174313]
[1754235122275,1.9647823,113940.0,113930.0,1.6566313]
[1754235122467,1.98934957,113940.0,113930.0,1.6566313]
[1754235122771,2.16488557,113940.0,113930.0,1.6566313]
[1754235122967,0.1755512,113930.0,113920.0,0.49247]
[1754235123167,0.1755512,113930.0,113910.0,0.6241612]
[1754235123168,0.1755667,113920.0,113910.0,0.6241612]
[1754235123474,0.9895199,113920.0,113910.0,0.8911612]
[1754235124177,0.9885199,113920.0,113910.0,0.8911612]
[1754235124475,0.9885199,113920.0,113910.0,0.5304012]
[1754235124774,0.92081938,113920.0,113910.0,0.4865058]
[1754235124974,1.45718738,113920.0,113910.0,0.4446621]
[1754235125377,2.02605903,113920.0,113910.0,0.002]
[1754235125568,2.02605903,113920.0,113900.0,1.48136]
[1754235125569,0.3775021,113910.0,113900.0,1.48136]
[1754235125764,1.30717375,113910.0,113900.0,1.48136]
[1754235125973,0.3775329,113890.0,113880.0,0.60657029]
[1754235126268,0.93076656,113890.0,113880.0,0.51301029]
[1754235126470,1.10638256,113890.0,113880.0,0.4428581]
[1754235126667,0.1757055,113830.0,113820.0,0.20556575]
[1754235126873,1.21539818,113830.0,113820.0,0.20003]
[1754235127064,1.75191018,113830.0,113820.0,0.20003]
[1754235127463,1.2065775,113830.0,113820.0,0.20003]
[1754235127673,1.21538342,113830.0,113820.0,0.20003]
[1754235128073,1.7597161,113830.0,113820.0,0.20003]
[1754235128270,0.3102809,113820.0,113810.0,0.37718]
[1754235128474,1.21241358,113820.0,113810.0,0.46807]
[1754235128775,1.20641358,113820.0,113810.0,0.46807]
[1754235128972,1.20641358,113820.0,113810.0,0.20003]
[1754235129172,1.20641358,113820.0,113810.0,0.46895]
[1754235129573,1.20641358,113820.0,113810.0,0.10914]
[1754235129772,0.6620809,113820.0,113810.0,0.20003]
[1754235129980,1.20641358,113820.0,113810.0,0.20003]
[1754235130682,1.20641358,113820.0,113810.0,0.20203]
[1754235131382,1.21640358,113820.0,113810.0,0.20203]
[1754235131974,1.21640358,113820.0,113810.0,0.11114]
[1754235132182,1.39212359,113820.0,113810.0,0.30442]
[1754235132479,1.48631954,113820.0,113810.0,0.002]
[1754235132673,1.51060455,113820.0,113810.0,0.002]
[1754235133070,1.51060455,113820.0,113810.0,0.0386]
[1754235134182,1.48631954,113820.0,113810.0,0.0386]
[1754235134479,1.51456735,113820.0,113810.0,0.0376]
[1754235135668,1.51456735,113820.0,113810.0,0.0346]
[1754235135979,1.51756735,113820.0,113810.0,0.0346]
[1754235136186,1.49331954,113820.0,113810.0,0.0346]
[1754235136582,1.49331954,113820.0,113810.0,0.2103357]
[1754235136777,0.94514686,113820.0,113810.0,0.3518657]
[1754235137083,1.39912359,113820.0,113810.0,0.3850057]
[1754235138080,1.39528359,113820.0,113810.0,0.3850057]
[1754235138276,1.39912359,113820.0,113810.0,0.20927]
[1754235138480,1.39912359,113820.0,113810.0,0.0346]
[1754235138681,1.22340358,113820.0,113810.0,0.0346]
[1754235139275,1.22340358,113820.0,113810.0,0.2103357]
[1754235139476,1.22340358,113820.0,113810.0,0.3850057]
[1754235140475,1.21956358,113820.0,113810.0,0.3850057]
[1754235141882,1.22340358,113820.0,113810.0,0.3850057]
[1754235142182,1.22340358,113820.0,113810.0,0.20927]
[1754235142382,1.22340358,113820.0,113810.0,0.0346]
[1754235143383,1.22340358,113820.0,113810.0,0.2103357]
[1754235143685,1.21956358,113820.0,113810.0,0.3850057]
[1754235144573,1.22340358,113820.0,113810.0,0.3850057]
[1754235146384,1.24765874,113820.0,113810.0,0.3850057]
[1754235147784,1.22340358,113820.0,113810.0,0.3850057]
[1754235151289,1.22340358,113820.0,113810.0,0.2570857]
[1754235151587,1.22340358,113820.0,113810.0,0.0346]
[1754235152482,1.22340358,113820.0,113810.0,0.2103358]
[1754235153588,1.22340358,113820.0,113810.0,0.2321058]
[1754235154787,1.22340358,113820.0,113810.0,0.2570858]
[1754235154989,1.22340358,113820.0,113810.0,0.3134658]
[1754235155288,1.22340358,113820.0,113810.0,0.08135]
[1754235155489,1.22340358,113820.0,113810.0,0.001]
[1754235155698,1.5006517,113820.0,113810.0,0.001]
[1754235158589,0.2418258,113810.0,113800.0,0.0336]
[1754235158901,1.22944848,113810.0,113800.0,0.01298635]
[1754235159094,1.22944848,113810.0,113790.0,0.3531542]
[1754235159095,0.1757512,113800.0,113790.0,0.3092144]
[1754235159289,1.26841388,113800.0,113790.0,0.3943644]
[1754235160398,0.3397566,113790.0,113780.0,1.434995]
[1754235160704,1.26842928,113790.0,113780.0,1.25922]
[1754235160890,1.26842928,113790.0,113780.0,1.4683421]
[1754235161401,0.7220966,113790.0,113780.0,1.5608421]
[1754235161603,1.26642928,113790.0,113780.0,1.5608421]
[1754235161790,1.26642928,113790.0,113780.0,1.5618421]
[1754235161995,1.26742928,113790.0,113780.0,1.5648421]
[1754235162501,1.26942928,113790.0,113780.0,1.5648421]
[1754235162703,1.26842928,113790.0,113780.0,1.5618421]
[1754235162891,1.26842928,113790.0,113780.0,1.5638421]
[1754235163209,1.35634793,113790.0,113780.0,1.5638421]
[1754235164704,0.81201525,113790.0,113780.0,1.5638421]
[1754235164910,1.35634793,113790.0,113780.0,1.54322565]
[1754235166805,0.81201525,113790.0,113780.0,1.54322565]
[1754235166999,1.30936793,113790.0,113780.0,1.54322565]
[1754235167198,1.33295793,113790.0,113780.0,1.54322565]
[1754235167593,1.26973458,113790.0,113780.0,1.54322565]
[1754235168303,1.26973458,113790.0,113780.0,0.4303421]
[1754235171801,1.10759468,113790.0,113780.0,0.4303421]
[1754235172304,0.563262,113790.0,113780.0,0.4303421]
[1754235172806,0.0266953,113790.0,113780.0,0.4303421]
[1754235173499,0.57102798,113790.0,113780.0,0.4303421]
[1754235173695,0.0266953,113790.0,113780.0,0.4303421]
[1754235174001,0.2024619,113790.0,113780.0,0.4303421]
[1754235174205,0.57102798,113790.0,113780.0,0.4303421]
[1754235174797,0.80291458,113790.0,113780.0,0.4303421]
[1754235175908,1.18730458,113790.0,113780.0,0.4303421]
[1754235178102,1.18730458,113790.0,113780.0,0.12713]
[1754235178402,1.21067458,113790.0,113780.0,0.12713]
[1754235178607,1.21067458,113790.0,113780.0,0.3029121]
[1754235178799,1.27389793,113790.0,113780.0,0.3029121]
[1754235179507,1.21067458,113790.0,113780.0,0.3029121]
[1754235179701,1.21067458,113790.0,113780.0,0.4303421]
[1754235180405,1.26816458,113790.0,113780.0,0.4303421]
[1754235180808,1.29153458,113790.0,113780.0,0.4303421]
[1754235181612,1.26816458,113790.0,113780.0,0.4303421]
[1754235182310,1.29153458,113790.0,113780.0,0.4303421]
[1754235183111,1.29153458,113790.0,113780.0,0.3903421]
[1754235184512,1.29153458,113790.0,113780.0,0.3952421]
[1754235185105,1.24346928,113790.0,113780.0,0.3952421]
[1754235187406,1.16375928,113790.0,113780.0,0.3952421]
[1754235187610,1.08289928,113790.0,113780.0,0.3952421]
[1754235187811,1.16260928,113790.0,113780.0,0.3952421]
[1754235188007,1.06770268,113790.0,113780.0,0.3952421]
[1754235188207,0.70690268,113790.0,113780.0,0.3952421]
[1754235188815,0.54633268,113790.0,113780.0,0.3952421]
[1754235189516,0.002,113790.0,113780.0,0.3952421]
[1754235190413,0.002,113790.0,113780.0,1.20327478]
[1754235190615,0.002,113790.0,113780.0,0.6589421]
[1754235191423,0.88405938,113790.0,113780.0,0.6589421]
[1754235191921,1.24485938,113790.0,113780.0,0.8387221]
[1754235192129,1.26746938,113790.0,113780.0,0.9298621]
[1754235196222,1.26746938,113790.0,113780.0,0.6661621]
[1754235199120,1.24485938,113790.0,113780.0,0.2678121]
[1754235199326,1.26746938,113790.0,113780.0,0.5398921]
[1754235201227,1.29093276,113790.0,113780.0,0.5398921]
[1754235204229,1.29093276,113790.0,113780.0,0.1885821]
[1754235204630,1.29093276,113790.0,113780.0,0.2225421]
[1754235208031,1.29093276,113790.0,113780.0,0.0128]
[1754235208329,1.38938892,113790.0,113780.0,0.0128]
[1754235211424,0.339512,113780.0,113770.0,1.21592]
[1754235211624,1.28279806,113780.0,113770.0,1.21592]
[1754235212335,1.28279806,113780.0,113770.0,1.24988]
[1754235212638,1.28279806,113780.0,113770.0,1.4256775]
[1754235213125,1.28379806,113780.0,113770.0,1.4627275]
[1754235213330,1.28379806,113780.0,113770.0,1.5178175]
[1754235214037,1.28379806,113780.0,113770.0,1.5188175]
[1754235214638,0.73946538,113780.0,113770.0,1.5188175]
[1754235214838,1.28379806,113780.0,113770.0,1.5188175]
[1754235215028,1.28579806,113780.0,113770.0,1.5188175]
[1754235215639,1.28479806,113780.0,113770.0,1.5178175]
[1754235215839,1.28779806,113780.0,113770.0,1.5188175]
[1754235221154,1.28779806,113780.0,113770.0,0.3826575]
[1754235221455,1.18319806,113780.0,113770.0,0.3826575]
[1754235221754,1.15973468,113780.0,113770.0,0.3826575]
[1754235222050,0.63884512,113780.0,113770.0,0.3826575]
[1754235222253,1.19477468,113780.0,113770.0,0.3826575]
[1754235222453,1.2182182,113780.0,113770.0,0.3826575]
[1754235222652,0.38924352,113780.0,113770.0,0.3826575]
[1754235222956,0.3658,113780.0,113770.0,0.3826575]
[1754235223152,0.5415821,113780.0,113770.0,0.3826575]
[1754235223456,1.08591478,113780.0,113770.0,0.3826575]
[1754235223955,0.72511478,113780.0,113770.0,0.3826575]
[1754235224155,0.77735478,113780.0,113770.0,0.3826575]
[1754235224556,1.13815478,113780.0,113770.0,0.3826575]
[1754235224754,0.05724,113780.0,113770.0,0.3826575]
[1754235224952,0.91013268,113780.0,113770.0,0.3826575]
[1754235225754,0.3658,113780.0,113770.0,0.3826575]
[1754235226156,0.5415821,113780.0,113770.0,0.3826575]
[1754235226558,1.08591478,113780.0,113770.0,0.3826575]
[1754235227055,0.91013268,113780.0,113770.0,0.3826575]
[1754235227261,0.005,113780.0,113770.0,0.92699018]
[1754235228161,0.005,113780.0,113770.0,0.3826575]
[1754235228367,0.005,113780.0,113770.0,0.92699018]
[1754235228656,0.005,113780.0,113770.0,1.28779018]
[1754235231458,0.005,113780.0,113770.0,0.7434575]
[1754235231659,0.005,113780.0,113770.0,1.28779018]
[1754235235969,0.005,113780.0,113770.0,0.7434575]
[1754235236268,0.005,113780.0,113770.0,1.28779018]
[1754235237565,0.005,113780.0,113770.0,0.7434575]
[1754235238669,0.005,113780.0,113770.0,1.28779018]
[1754235241074,0.005,113780.0,113770.0,0.7434575]
[1754235241274,0.005,113780.0,113770.0,1.28779018]
[1754235241969,0.005,113780.0,113770.0,0.7434575]
[1754235242170,0.005,113780.0,113770.0,1.28779018]
[1754235243778,0.3608,113800.0,113790.0,0.3785467]
[1754235243971,0.5365512,113800.0,113790.0,0.6518267]
[1754235244375,0.5887912,113800.0,113790.0,0.6518267]
[1754235244575,0.41304,113800.0,113790.0,0.6518267]
[1754235244872,0.41804,113800.0,113790.0,0.6528267]
[1754235245478,0.3678,113800.0,113790.0,1.19715938]
[1754235245677,0.3678,113800.0,113790.0,0.6528267]
[1754235246077,0.007,113800.0,113790.0,1.0136267]
[1754235246277,0.007,113800.0,113790.0,1.55795938]
[1754235246673,0.007,113800.0,113790.0,1.62907009]
[1754235247475,0.007,113800.0,113790.0,1.08473741]
[1754235247879,0.007,113800.0,113790.0,1.62907009]
[1754235248381,0.007,113800.0,113790.0,1.08473741]
[1754235248881,0.007,113800.0,113790.0,1.62907009]
[1754235249982,0.002,113800.0,113790.0,1.62807009]
[1754235250182,0.004,113800.0,113790.0,1.62907009]
[1754235250480,0.002,113800.0,113790.0,1.62907009]
[1754235250679,0.003,113800.0,113790.0,1.62907009]
[1754235251482,0.002,113800.0,113790.0,1.62907009]
[1754235251678,0.003,113800.0,113790.0,1.62907009]
[1754235252975,0.003,113800.0,113790.0,1.08473741]
[1754235253176,0.003,113800.0,113790.0,1.62907009]
[1754235253679,0.003,113800.0,113790.0,1.08473741]
[1754235253880,0.003,113800.0,113790.0,1.62907009]
[1754235254082,0.003,113800.0,113790.0,1.08473741]
[1754235254277,0.003,113800.0,113790.0,0.72393741]
[1754235254673,0.05584,113800.0,113790.0,0.72393741]
[1754235255084,0.05584,113800.0,113790.0,0.45065741]
[1754235255286,0.003,113800.0,113790.0,0.72345741]
[1754235257382,0.003,113800.0,113790.0,1.26779009]
[1754235258686,0.003,113800.0,113790.0,0.72345741]
[1754235264292,0.003,113800.0,113790.0,1.08425741]
[1754235264493,0.003,113800.0,113790.0,0.72345741]
[1754235267089,0.003,113800.0,113790.0,0.45065741]
[1754235267396,0.003,113800.0,113790.0,0.72285741]
[1754235269698,0.3638,113800.0,113790.0,0.72285741]
[1754235270396,0.003,113800.0,113790.0,0.72285741]
[1754235278701,1.08388388,113800.0,113790.0,0.3795467]
[1754235278907,1.15709388,113800.0,113790.0,0.6509867]
[1754235279102,1.19802632,113800.0,113790.0,0.6509867]
[1754235279297,1.19802632,113800.0,113790.0,0.20378]
[1754235279298,1.17447388,113800.0,113790.0,0.20378]
[1754235279499,1.17447388,113800.0,113790.0,0.3882]
[1754235280201,1.17447388,113800.0,113790.0,0.6153067]
[1754235280402,1.17447388,113800.0,113790.0,0.6488667]
[1754235281206,1.17447388,113800.0,113790.0,0.3771867]
[1754235281599,1.25405388,113800.0,113790.0,0.3771867]
[1754235283802,1.27755918,113800.0,113790.0,0.3771867]
[1754235285707,1.63835918,113800.0,113790.0,0.3771867]
[1754235292008,1.61485388,113800.0,113790.0,0.3771867]
[1754235294311,1.59747388,113800.0,113790.0,0.3771867]
[1754235294612,1.66678627,113800.0,113790.0,0.3771867]
[1754235295505,1.0531412,113800.0,113790.0,0.3771867]
[1754235295709,1.66678627,113800.0,113790.0,0.3771867]
[1754235296611,1.59858504,113800.0,113790.0,0.3771867]
[1754235297413,1.61429504,113800.0,113790.0,0.3771867]
[1754235297809,1.63777567,113800.0,113790.0,0.3771867]
[1754235301015,1.63777567,113800.0,113790.0,0.2108367]
[1754235302016,1.09233183,113800.0,113790.0,0.2108367]
[1754235302218,1.63777567,113800.0,113790.0,0.2108367]
[1754235303012,1.07662183,113800.0,113790.0,0.3741167]
[1754235303217,1.62206567,113800.0,113790.0,0.3741167]
[1754235303618,1.05625183,113800.0,113790.0,0.3741167]
[1754235303820,0.02648063,113800.0,113790.0,0.3741167]
[1754235304014,0.003,113800.0,113790.0,0.91956054]
[1754235304717,0.003,113800.0,113790.0,0.3741167]
[1754235305312,0.003,113800.0,113790.0,1.54406054]
[1754235307421,0.003,113800.0,113790.0,0.9986167]
[1754235307615,0.003,113800.0,113790.0,1.54406054]
[1754235307815,0.87398504,113800.0,113790.0,0.3741167]
[1754235309215,0.88969504,113800.0,113790.0,0.3741167]
[1754235309712,0.87398504,113800.0,113790.0,0.3741167]
[1754235310223,0.3285412,113800.0,113790.0,0.3741167]
[1754235310421,0.87398504,113800.0,113790.0,0.3741167]
[1754235311321,0.3285412,113800.0,113790.0,0.3741167]
[1754235313225,0.15279,113800.0,113790.0,0.3741167]
[1754235314123,0.3285412,113800.0,113790.0,0.3741167]
[1754235314731,0.6893412,113800.0,113790.0,0.3741167]
[1754235317629,0.6893412,113800.0,113790.0,0.6378167]
[1754235321339,0.3285412,113800.0,113790.0,0.6378167]
[1754235322840,0.6893412,113800.0,113790.0,0.6378167]
[1754235323038,0.3285412,113800.0,113790.0,0.6378167]
[1754235323842,0.15279,113800.0,113790.0,0.6378167]
[1754235333449,0.3285412,113800.0,113790.0,0.6378167]
[1754235334452,0.15279,113800.0,113790.0,0.6378167]
[1754235340155,0.15279,113800.0,113790.0,0.9083767]
[1754235342558,0.05567,113800.0,113790.0,0.9083767]
[1754235342855,0.66917833,113800.0,113790.0,1.52188503]
[1754235344058,0.05567,113800.0,113790.0,1.52188503]
[1754235344247,0.003,113800.0,113790.0,1.52188503]
[1754235344855,0.003,113800.0,113790.0,2.13539336]
[1754235345653,0.41056,113820.0,113810.0,0.2498758]
[1754235345956,1.04834223,113820.0,113810.0,1.24848413]
[1754235346151,0.99858223,113820.0,113810.0,0.97808413]
[1754235346357,0.99858223,113820.0,113810.0,1.24848413]
[1754235346753,0.99858223,113820.0,113810.0,0.6349758]
[1754235346754,0.3850739,113820.0,113810.0,0.6349758]
[1754235347566,0.3850739,113820.0,113810.0,1.18012971]
[1754235347961,0.3880739,113820.0,113810.0,1.18012971]
[1754235348167,0.3880739,113820.0,113810.0,1.18112971]
[1754235348168,0.0322739,113820.0,113810.0,1.18112971]
[1754235348461,0.008,113820.0,113810.0,1.54192971]
[1754235349769,0.008,113820.0,113810.0,0.9967758]
[1754235350071,0.008,113820.0,113810.0,1.54192971]
[1754235351662,0.59489857,113840.0,113830.0,0.3645449]
[1754235351862,0.11920442,113840.0,113830.0,0.3645449]
[1754235352061,0.08631442,113840.0,113830.0,0.3645449]
[1754235352266,0.03288442,113840.0,113830.0,0.3645449]
[1754235352964,0.03788442,113840.0,113830.0,0.3655449]
[1754235353164,0.04588442,113840.0,113830.0,0.3665449]
[1754235353862,0.02164837,113840.0,113830.0,0.3665449]
[1754235355563,0.013,113840.0,113830.0,1.27249881]
[1754235356559,0.013,113840.0,113830.0,0.7273449]
[1754235358264,0.013,113840.0,113830.0,1.27249881]
[1754235358667,0.013,113840.0,113830.0,1.54281881]
[1754235361067,0.013,113840.0,113830.0,1.55149459]
[1754235361264,0.013,113840.0,113830.0,1.54281881]
[1754235361864,0.013,113840.0,113830.0,1.80651881]
[1754235362265,0.013,113840.0,113830.0,1.2613649]
[1754235362465,0.013,113840.0,113830.0,1.80651881]
[1754235363167,0.013,113840.0,113830.0,1.81527299]
[1754235363670,0.013,113840.0,113830.0,1.27011908]
[1754235363870,0.013,113840.0,113830.0,1.81527299]
[1754235364670,0.013,113840.0,113830.0,1.80651881]
[1754235365970,0.013,113840.0,113830.0,1.81537044]
[1754235366171,0.4363369,113860.0,113850.0,0.217454]
[1754235366367,0.4897669,113860.0,113850.0,0.634794]
[1754235366569,0.5110469,113860.0,113850.0,0.634794]
[1754235367975,0.48401,113870.0,113860.0,0.2497986]
[1754235368171,0.52410895,113870.0,113860.0,0.3644986]
[1754235368662,0.54825895,113870.0,113860.0,0.3644986]
[1754235369064,0.55225895,113870.0,113860.0,0.3644986]
[1754235369569,0.7037432,113870.0,113860.0,0.3644986]
[1754235369763,1.24889711,113870.0,113860.0,0.3644986]
[1754235369964,1.25754265,113870.0,113860.0,0.3644986]
[1754235370364,1.25454265,113870.0,113860.0,0.3644986]
[1754235371071,1.10305222,113870.0,113860.0,0.3644986]
[1754235371268,1.27869542,113870.0,113860.0,0.3644986]
[1754235371475,1.28069542,113870.0,113860.0,0.3644986]
[1754235372676,0.73554151,113870.0,113860.0,0.3644986]
[1754235372876,1.28069542,113870.0,113860.0,0.3644986]
[1754235374069,1.10505222,113870.0,113860.0,0.3644986]
[1754235374674,1.10605222,113870.0,113860.0,0.3644986]
[1754235376885,1.28169542,113870.0,113860.0,0.3644986]
[1754235378785,0.56089831,113870.0,113860.0,0.3644986]
[1754235378983,1.10605222,113870.0,113860.0,0.3644986]
[1754235382691,1.17373873,113870.0,113860.0,0.3644986]
[1754235382889,1.34938193,113870.0,113860.0,0.3644986]
[1754235383591,1.14958873,113870.0,113860.0,0.3563186]
[1754235383792,1.17348873,113870.0,113860.0,0.3563186]
[1754235383993,1.17348873,113870.0,113860.0,0.96915902]
[1754235384790,1.14958873,113870.0,113860.0,0.96915902]
[1754235384989,1.17348873,113870.0,113860.0,0.96915902]
[1754235385589,0.81268873,113870.0,113860.0,0.96915902]
[1754235386288,1.17348873,113870.0,113860.0,0.96915902]
[1754235386788,1.17248873,113870.0,113860.0,0.96915902]
[1754235386988,1.17048873,113870.0,113860.0,0.96915902]
[1754235387293,1.17148873,113870.0,113860.0,0.96915902]
[1754235388401,1.17148873,113870.0,113860.0,0.3563186]
[1754235390397,0.3378986,113860.0,113850.0,0.1756648]
[1754235390698,1.94853221,113860.0,113850.0,0.1756648]
[1754235391497,1.77287361,113860.0,113850.0,0.1756648]
[1754235391889,1.16003319,113860.0,113850.0,0.1766648]
[1754235392390,1.33569179,113860.0,113850.0,0.1766648]
[1754235393596,1.33769179,113860.0,113850.0,0.1766648]
[1754235393993,1.33969179,113860.0,113850.0,0.2045248]
[1754235394696,1.27180104,113860.0,113850.0,0.2045248]
[1754235407514,0.72685137,113860.0,113850.0,0.2045248]
[1754235407814,1.27180104,113860.0,113850.0,0.2045248]
[1754235411617,0.2469095,113840.0,113830.0,0.3317733]
[1754235411916,1.23626917,113840.0,113830.0,0.4101333]
[1754235412112,1.23626917,113840.0,113830.0,0.175695]
[1754235412318,0.3305349,113830.0,113820.0,0.3643276]
[1754235412514,1.23628457,113830.0,113820.0,0.3317976]
[1754235412714,0.3305504,113820.0,113810.0,1.5517398]
[1754235412923,1.23630007,113820.0,113810.0,1.5517398]
[1754235413313,0.6913504,113820.0,113810.0,1.5828798]
[1754235413513,0.47831,113820.0,113810.0,1.6300998]
[1754235413724,0.49283,113820.0,113810.0,1.6300998]
[1754235414219,0.49283,113820.0,113810.0,1.6330998]
[1754235414220,0.6675503,113820.0,113810.0,1.6330998]
[1754235414618,0.49183,113820.0,113810.0,1.6330998]
[1754235415017,0.49183,113820.0,113810.0,1.6370998]
[1754235415617,1.12775327,113830.0,113820.0,0.3548403]
[1754235415824,1.14227327,113830.0,113820.0,0.3548403]
[1754235416315,1.16407327,113830.0,113820.0,0.3548403]
[1754235417228,1.16507327,113830.0,113820.0,0.3548403]
[1754235417826,1.16707327,113830.0,113820.0,0.3548403]
[1754235422524,0.6933436,113830.0,113820.0,0.3548403]
[1754235422725,1.23829327,113830.0,113820.0,0.3548403]
[1754235425628,1.26240414,113830.0,113820.0,0.3548403]
[1754235430735,1.33077304,113830.0,113820.0,0.3548403]
[1754235431333,0.71745447,113830.0,113820.0,0.3548403]
[1754235431729,1.33077304,113830.0,113820.0,0.3548403]
[1754235435339,1.33077304,113830.0,113820.0,0.6268403]
[1754235436440,0.71745447,113830.0,113820.0,0.6268403]
[1754235436738,1.33077304,113830.0,113820.0,0.6268403]
[1754235437434,1.13325944,113830.0,113820.0,1.24094887]
[1754235437635,0.02711087,113830.0,113820.0,1.24094887]
[1754235437841,0.64042944,113830.0,113820.0,1.24094887]
[1754235438033,0.02711087,113830.0,113820.0,1.86544887]
[1754235438236,0.003,113830.0,113820.0,1.86544887]
[1754235438437,0.61631857,113830.0,113820.0,1.86544887]
[1754235438835,0.003,113830.0,113820.0,2.47876744]
[1754235439239,0.003,113830.0,113820.0,1.86544887]
[1754235440142,0.002,113830.0,113820.0,1.86544887]
[1754235440642,0.002,113830.0,113820.0,1.79710191]
[1754235440832,0.002,113830.0,113820.0,1.2521303]
[1754235441035,0.002,113830.0,113820.0,1.43630191]
[1754235441231,0.002,113830.0,113820.0,1.79710191]
[1754235441436,0.003,113830.0,113820.0,1.79710191]
[1754235442644,0.003,113830.0,113820.0,1.2521303]
[1754235442844,0.003,113830.0,113820.0,0.8913303]
[1754235444052,0.003,113830.0,113820.0,1.2521303]
[1754235445147,0.003,113830.0,113820.0,0.8913303]
[1754235445942,0.003,113830.0,113820.0,1.2521303]
[1754235447951,0.003,113830.0,113820.0,1.79710191]
[1754235452248,1.16967841,113860.0,113850.0,0.3547441]
[1754235452450,0.73398295,113860.0,113850.0,0.6263841]
[1754235452843,1.05936776,113860.0,113850.0,0.6263841]
[1754235453051,0.38493615,113860.0,113850.0,0.6263841]
[1754235453252,0.42925615,113860.0,113850.0,0.6263841]
[1754235453446,0.42925615,113860.0,113850.0,0.6273841]
[1754235453650,0.43925615,113860.0,113850.0,0.6283841]
[1754235453846,0.45250615,113860.0,113850.0,0.6283841]
[1754235454040,0.46900615,113860.0,113850.0,0.6273841]
[1754235454250,1.24202636,113860.0,113850.0,0.6273841]
[1754235454449,1.26561636,113860.0,113850.0,0.6273841]
[1754235455446,1.26261636,113860.0,113850.0,0.6263841]
[1754235456450,1.25961636,113860.0,113850.0,0.6273841]
[1754235457152,1.23548021,113860.0,113850.0,0.6273841]
[1754235458646,1.23448021,113860.0,113850.0,0.6273841]
[1754235458851,1.23548021,113860.0,113850.0,0.6273841]
[1754235462256,0.6905086,113860.0,113850.0,0.6273841]
[1754235462456,1.23548021,113860.0,113850.0,0.6273841]